Cogmind - Beta 14 @@@ ROGUE MODE // 2024.08.07 @ 22:52:36 Player: TheProctologist Result: Self-destructed Performance ------------- Evolutions (1) 500 Regions Visited (2) 400 Robots Destroyed (19) 95 Value Destroyed (490) 490 Prototype IDs (2) 40 Alien Tech Used (0) 0 Bonus (0) 0 TOTAL SCORE: 1525 Bonus ------- None Cogmind --------- Core Integrity 356/400 Matter 240/300 Energy 246/250 System Corruption 0% Temperature Warm (106) Movement Rolling (125) Ox3 Location -9/Materials Parts ------- > --- POWER (1) -------- Ion Engine > --- PROPULSION (3) --- Wheel > --- UTILITY (3) ------ Large Storage Unit Structural Scanner > --- WEAPON (2) ------- Beam Rifle Particle Cannon > --- INVENTORY (15) --- Ion Engine Light Ion Engine Aluminum Leg Aluminum Leg Aluminum Leg Datajack Mining Laser Peak State ------------ > --- POWER ------------ Ion Engine > --- PROPULSION ------- Wheel Wheel Compact Wheel > --- UTILITY ---------- Heat Sink Medium Storage Unit Structural Scanner > --- WEAPON ----------- EM Shotgun EM Shotgun > --- INVENTORY -------- Ion Engine Light Ion Engine Aluminum Leg Aluminum Leg Aluminum Leg Large Storage Unit Particle Cannon Datajack Mining Laser [Rating: 12] Favorites ----------- Power Ion Engine Engine Ion Engine Propulsion Wheel Wheel Wheel Utility Structural Scanner Device Structural Scanner Storage Medium Storage Unit Weapon EM Shotgun Energy Gun EM Shotgun Energy Cannon Particle Cannon Ballistic Gun Light Assault Rifle Build | -11 -10 -9 ------- Run | Yrd Mat Mat Slots Evolved 2 | . . 2 Power . | . . . Propulsion 1 | . . 1 Utility 1 | . . 1 Weapon . | . . . Parts Attached 22 | 6 9 7 Power 2 | 1 1 . Engine 2 | 1 1 . Core . | . . . Reactor . | . . . Propulsion 4 | 2 . 2 Treads . | . . . Leg . | . . . Wheel 4 | 2 . 2 Hover . | . . . Flight . | . . . Utility 9 | 1 5 3 Device 6 | . 4 2 Storage 3 | 1 1 1 Processor . | . . . Hackware . | . . . Protection . | . . . Artifact . | . . . Weapon 7 | 2 3 2 Energy Gun 4 | . 3 1 Energy Cannon 1 | . . 1 Ballistic Gun 2 | 2 . . Ballistic Cannon . | . . . Launcher . | . . . Special Weapon . | . . . Impact Weapon . | . . . Slashing Weapon . | . . . Piercing Weapon . | . . . Special Melee Weapon . | . . . Unidentified Prototypes . | . . . Parts Lost 7 | . 1 6 Power . | . . . Propulsion 3 | . . 3 Utility 1 | . . 1 Weapon 3 | . 1 2 Highest Loss Streak 3 | . 1 3 To Critical Strikes . | . . . Average Slot Usage (%) 93 | . 94 92 Engine 12 | . 14 11 Wheel 28 | . 28 28 Device 13 | . 8 19 Storage 12 | . 14 11 Energy Gun 17 | . 19 15 Energy Cannon 2 | . . 6 Ballistic Gun 4 | . 8 . Peak Build Rating 12 | 6 10 12 Average Rating 9 | 4 8 10 On Entrance 5 | . 6 10 Naked Turns . | . . . Heaviest Build 34 | 13 22 34 Greatest Support 36 | 26 26 36 Greatest Overweight (x) 1 | . . 1 Average Overweight (x) . | . . . Largest Inventory Capacity 15 | 8 10 15 Average Capacity 10 | 6 9 13 Most Carried 10 | 8 10 10 Average Carried 8 | 3 9 8 Final Capacity 15 | 8 10 15 Final Carried 10 | 8 10 7 Class Distribution -------------------- 100% | Mutant Dominant Class ---------------- Mutant | -10/Materials Mutant | -9/Materials Resources | -11 -10 -9 ----------- Run | Yrd Mat Mat Matter Collected 360 | 284 76 . Remotely . | . . . Salvage Created 748 | 103 419 226 Parts 50 | 6 27 17 Haulers Intercepted 1 | . 1 . Recyclers Shooed . | . . . Parts Field Recycled . | . . . Retrieved Matter . | . . . Parts Self-Destructed . | . . . Prevented . | . . . Kills | -11 -10 -9 ------- Run | Yrd Mat Mat Combat Hostiles Destroyed 14 | . 8 6 Guns 11 | . 8 3 Cannons 3 | . . 3 Classes Destroyed 8 | 2 3 3 Worker 1 | . 1 . Builder 1 | . . 1 Tunneler 1 | 1 . . Hauler 1 | . 1 . Recycler 1 | 1 . . Swarmer 3 | . . 3 Grunt 9 | . 8 1 Sentry 2 | . . 2 Best Kill Streak 5 | 2 4 5 Combat Bots Only 4 | . 4 4 Max Kills in Single Turn 2 | 1 2 2 Gunslinging . | . . . Exploded . | . . . Melee . | . . . Uniques/NPCs Destroyed . | . . . Combat | -11 -10 -9 -------- Run | Yrd Mat Mat Hostile Shots Fired 83 | . 20 63 Missed 19 | . 4 15 Damage Taken 692 | . 181 511 Core 44 | . . 44 Absorbed by Shields . | . . . Core Remaining (%) 100 | 100 100 . Volleys Fired 44 | 6 22 16 Largest 2 | 2 2 2 Hottest 124 | 40 90 124 Shots Fired 86 | 12 44 30 Gun 70 | 12 44 14 Cannon 16 | . . 16 Launcher . | . . . Special . | . . . Kinetic 16 | 12 4 . Thermal 25 | . . 25 Explosive . | . . . Electromagnetic 45 | . 40 5 Robot Hit Streak 12 | 5 10 12 Robot Miss Streak 3 | 1 3 3 Penetration Max . | . . . Secondary Targets . | . . . Shots Hit Robots 61 | 9 34 18 Core Hits 34 | 4 22 8 Critical Kills . | . . . Critical Parts Destroyed . | . . . Critical Strikes . | . . . Melee Attacks . | . . . Impact . | . . . Slashing . | . . . Piercing . | . . . Sneak Attacks . | . . . Combat Hostiles . | . . . Follow-up Attacks . | . . . Damage Inflicted 959 | 99 531 329 Guns 754 | 99 531 124 Cannons 205 | . . 205 Explosions . | . . . Melee . | . . . Ramming . | . . . Kinetic 116 | 99 17 . Thermal 263 | . . 263 Explosive . | . . . Electromagnetic 580 | . 514 66 Impact . | . . . Slashing . | . . . Piercing . | . . . Highest Corruption . | . . . Average Corruption . | . . . Corruption Purged . | . . . Corruption Blocked . | . . . Overload Shots . | . . . Overflow Damage . | . . . Projectiles . | . . . Explosions . | . . . Melee . | . . . Knockbacks . | . . . Impact . | . . . Kinetic . | . . . Secondary . | . . . Self-Inflicted Damage . | . . . Shots . | . . . Rammed . | . . . Targets Rammed . | . . . Kicked . | . . . Crushed . | . . . Highest Temperature 304 | . 304 106 Average Temperature 71 | . 106 29 Received Heat Transfer 222 | . 120 102 Effects 2 | . 2 . Energy Bleed 2 | . 2 . Siege Activations . | . . . Robots Corrupted . | . . . Combat Hostiles . | . . . Parts Fried 2 | . 2 . Impact Corruptions . | . . . Robots Melted . | . . . Combat Hostiles . | . . . Parts Melted 1 | . . 1 Heat Transferred 518 | . . 518 Parts Sabotaged . | . . . Parts Stolen . | . . . Parts Stripped . | . . . Power Chain Reactions . | . . . Alert | -11 -10 -9 ------- Run | Yrd Mat Mat Peak Influence 392 | 10 256 392 Initial 107 | . 6 107 Average 131 | 2 124 180 Maximum Alert Level 1 | . 1 1 Low Security (%) 75 | 100 70 74 Level 1 24 | . 29 25 Level 2 . | . . . Level 3 . | . . . Level 4 . | . . . Level 5 . | . . . High Security . | . . . Max Security . | . . . Squads Dispatched 2 | . 2 . Investigation 1 | . 1 . Extermination . | . . . Reinforcement 1 | . 1 . Assault . | . . . Garrison . | . . . Intercept . | . . . Searches Triggered . | . . . Construction Impeded . | . . . Haulers Reinforced . | . . . Active Scanning Responses . | . . . Cargo Convoy Interrupts . | . . . Stealth | -11 -10 -9 --------- Run | Yrd Mat Mat Distress Signals 1 | . 1 . Communications Jammed . | . . . Distress Signals . | . . . Times Spotted 28 | . 11 17 Peak Tracking Total 8 | . 4 8 Tactical Retreats 3 | . . 3 Traps | -11 -10 -9 ------- Run | Yrd Mat Mat Traps Triggered . | . . . Indirectly . | . . . Trap Hack Attempts . | . . . Triggered . | . . . Disarmed . | . . . Reprogrammed . | . . . Reused . | . . . Traps Extracted . | . . . Installed . | . . . Triggered . | . . . Machines | -11 -10 -9 ---------- Run | Yrd Mat Mat Machines Disabled 3 | . . 3 Max in Single Turn 1 | . . 1 Machines Repaired . | . . . Machines Dismantled . | . . . Machines Sabotaged . | . . . Overloaded Fab Kills . | . . . Hacking | -11 -10 -9 --------- Run | Yrd Mat Mat Machines Accessed 4 | . 4 . Terminals 4 | . 4 . Fabricators . | . . . Repair Stations . | . . . Recycling Units . | . . . Scanalyzers . | . . . Garrison Access . | . . . Total Hacks 8 | . 8 . Successful 7 | . 7 . Failed 1 | . 1 . Catastrophic . | . . . Database Lockouts . | . . . Manual . | . . . Terminals 8 | . 8 . Fabricators . | . . . Repair Stations . | . . . Recycling Units . | . . . Scanalyzers . | . . . Garrison Access . | . . . Terminal Hacks 7 | . 7 . Prototype ID Bank 1 | . 1 . Emergency Access Points 2 | . 2 . Terminal Index 1 | . 1 . Locate Traps 1 | . 1 . Dispatch Records 1 | . 1 . Zone Layout 1 | . 1 . Fabricator Hacks . | . . . Repair Station Hacks . | . . . Recycling Unit Hacks . | . . . Scanalyzer . | . . . Garrison Access Hacks . | . . . Unauthorized Hacks . | . . . Terminals . | . . . Fabricators . | . . . Repair Stations . | . . . Recycling Units . | . . . Scanalyzers . | . . . Garrison Access . | . . . Data Cores Recovered . | . . . Used . | . . . Hacking Detections 1 | . 1 . Full Trace Events 1 | . 1 . Feedback Events . | . . . Feedback Blocked . | . . . Robot Schematics Acquired . | . . . Robots Built . | . . . Authchips . | . . . Time . | . . . Total Robot Build Rating . | . . . Part Schematics Acquired . | . . . Parts Built . | . . . Authchips . | . . . Time . | . . . Total Part Build Rating . | . . . Parts Repaired . | . . . Time . | . . . Parts Recycled . | . . . Recycled Matter . | . . . Retrieved Matter . | . . . Retrieved Components . | . . . Parts Scanalyzed . | . . . Part Schematics Acquired . | . . . Parts Damaged . | . . . Bothacking | -11 -10 -9 ------------ Run | Yrd Mat Mat Used RIF Installer . | . . . Robots Hacked . | . . . Non-combat . | . . . Combat . | . . . Robot Hacks Applied . | . . . Relay Couplers Released . | . . . Fabnet Peak Effective % . | . . . Robots Rewired . | . . . Allies Hacked . | . . . Hacks Repelled . | . . . Allies | -11 -10 -9 -------- Run | Yrd Mat Mat Total Allies . | . . . Largest Group . | . . . Highest-Rated Group . | . . . Highest-Rated Ally . | . . . Total Orders . | . . . Ally Attacks . | . . . Total Damage . | . . . Kills . | . . . Allies Corrupted . | . . . Allies Melted . | . . . Intel | -11 -10 -9 ------- Run | Yrd Mat Mat Robot Analysis Total . | . . . Derelict Logs Recovered . | . . . Drone Launches . | . . . Drone Recoveries . | . . . Exploration | -11 -10 -9 ------------- Run | Yrd Mat Mat Turns Passed 646 | 78 317 251 Spaces Moved 445 | 48 224 173 Core 3 | 3 . . Treads . | . . . Legs . | . . . Wheels 442 | 45 224 173 Hover . | . . . Flight . | . . . Fastest Speed 50 | 50 90 86 Average Speed 89 | 87 90 88 Slowest Speed 105 | 100 90 105 Overloaded Moves . | . . . Propulsion Burnouts . | . . . Robots Hopped . | . . . Cave-ins Triggered . | . . . Exploration Rate (%) 23 | 3 46 22 Regions Visited 2 Branch Regions . Pre-discovered Areas . | . . . Known Exits Taken . | . . . Unknown Exits Taken 2 | 1 1 . Scrap Searched . | . . . Spaces Dug . | . . . Terrain Destroyed . | . . . Melee . | . . . Projectile . | . . . AOE . | . . . Terrain Rammed . | . . . Walls Destroyed . | . . . Machines Disabled . | . . . Actions | -11 -10 -9 --------- Run | Yrd Mat Mat Total 607 | 70 296 241 Wait 66 | . 27 39 Move 443 | 47 223 173 Hop . | . . . Pick Up 19 | 10 6 3 Fast Attach 11 | 5 5 1 Attach 7 | 1 1 5 Detach 3 | . 2 1 Swap 4 | . 3 1 Drop 10 | 1 7 2 Fire 44 | 6 22 16 Melee . | . . . Ram . | . . . Kick . | . . . Crush . | . . . Escape Stasis . | . . . Rewire . | . . . Trap . | . . . Miscellaneous . | . . . Route ------- -11/Scrapyard -10/Materials (discovered 3 exits: [*Mat x2] / [*Min]) -9/Materials (discovered 1 exit: [*Sto]) History --------- Turn | Location | Event 2 | -11/Scrapyard | Met Revision 17 4 | -11/Scrapyard | Discovered new exit (range 15) 79 | -11/Scrapyard | Entered Materials 123 | -10/Materials | Discovered new exit (range 6) 155 | -10/Materials | Discovered new exit (range 13) 332 | -10/Materials | Build established: Mutant 387 | -10/Materials | Discovered new exit (range 7) 396 | -10/Materials | Entered another Materials area 396 | -9/Materials | Evolved 2 slots: Propulsion x1, Utility x1 587 | -9/Materials | Discovered new exit (range 12) 647 | -9/Materials | Self-destructed Last Messages --------------- 00588_ G-47 Trooper unfolds itself. 00588_ G-34 Mercenary unfolds itself. 00591_ K-01 Serf cleans the Nuclear Reactor. 00594_ K-01 Serf collects debris. 00594_ K-01 Serf cleans the Nuclear Reactor. 00595_ Flight Unit melted. 00595_ S-10 Pest destroyed. 00595_ U-05 Engineer destroyed. 00599_ K-01 Serf collects debris. 00600_ R-06 Scavenger collects Welding Torch. 00600_ S-10 Pest destroyed. 00602_ K-01 Serf collects debris. 00607_ G-34 Mercenary destroyed. 00607_ Electrolysis Chamber disabled. 00608_ K-01 Serf collects debris. 00626_ Matter Filter disabled. 00630_ Com. Wheel destroyed. 00643_ Heat Sink destroyed. 00645_ U-05 Engineer builds a Door. 00646_ Wheel destroyed. Map ----- +----------------------------------------------------+ | ??????????????????????## ### ### # | | ??????????????????????## " = [#[ "" | | ????????????????????? "%" %! %/*""" | | ??????????????????????## " ! % %# """ | | ?????????????????????? # ####### # | | ?????????????????????? ##???######## # """ | | ??????????????????????????????????### ## """ | | ??????????????????????????????????### ## """ | | ??????????????????????????########### ## | | ??????????????????????????########### ## ? | | ??????????????????????????## % ## ? | | ??????????????????????????## #####??? | | ??????????????????????????## #####??? | | ??????????????????????????## """"" "##???? | | ?????????????############### %"""" T"##???? | | ?????????????############### """"" ""##???? | | ?????????????## # """"" ####???? | | ?????????????## """ # """"" ####???? | | ?????????????## """ # """"" ##?????? | | ?????????????## """ # """"" ##?????? | | ?????????????## # ##?????? | | ?????????????##